fUSD/lending_fUSD_20241225
["ID","MTS","AMOUNT","RATE_DAILY","PERIOD"]
[346599368,1735123851581,-500.0,9.645e-05,2]
[346599369,1735123851602,-500.0,9.645e-05,2]
[346599370,1735123851623,-1858.46,9.645e-05,2]
[346599371,1735123851643,-500.0,9.645e-05,2]
[346599372,1735123851663,-500.0,9.645e-05,2]
[346599373,1735123851686,-500.0,9.645e-05,2]
[346599374,1735123851707,-500.0,9.645e-05,2]
[346599375,1735123851728,-500.0,9.645e-05,2]
[346599376,1735123851749,-500.0,9.645e-05,2]
[346599377,1735123851770,-500.0,9.645e-05,2]
[346599378,1735123851791,-1306.98,9.645e-05,2]
[346599379,1735123851812,-500.0,9.645e-05,2]
[346599380,1735123851833,-500.0,9.645e-05,2]
[346599381,1735123851855,-1048.75,9.645e-05,2]
[346599382,1735123851875,-2452.91,9.645e-05,2]
[346599383,1735123851896,-1263.71,9.645e-05,2]
[346599384,1735123851918,-504.0470621,9.645e-05,2]
[346599385,1735123851939,-500.0,9.645e-05,2]
[346599386,1735123851959,-604.41,9.645e-05,2]
[346599387,1735123851980,-500.0,9.645e-05,2]
[346599388,1735123852001,-500.0,9.645e-05,2]
[346599389,1735123852022,-500.0,9.645e-05,2]
[346599390,1735123852043,-1520.77,9.645e-05,2]
[346599391,1735123852065,-500.0,9.645e-05,2]
[346599392,1735123852086,-524.8195953,9.645e-05,2]
[346599393,1735123852107,-500.0,9.645e-05,2]
[346599394,1735123852128,-502.2015154,9.645e-05,2]
[346599395,1735123852149,-1970.0,9.645e-05,2]
[346599396,1735123852170,-823.95,9.645e-05,2]
[346599397,1735123852191,-500.0,9.645e-05,2]
[346599398,1735123852212,-500.0,9.645e-05,2]
[346599399,1735123852234,-1359.23,9.645e-05,2]
[346599400,1735123852255,-1156.27,9.645e-05,2]
[346599401,1735123852276,-500.0,9.645e-05,2]
[346599402,1735123852298,-500.0,9.645e-05,2]
[346599403,1735123852322,-500.0,9.645e-05,2]
[346599404,1735123852344,-500.0,9.645e-05,2]
[346599405,1735123852366,-513.31,9.645e-05,2]
[346599406,1735123852388,-639.03,9.645e-05,2]
[346599407,1735123852409,-500.0,9.645e-05,2]
[346599408,1735123852431,-1839.64,9.645e-05,2]
[346599409,1735123852457,-1260.21,9.645e-05,2]
[346599410,1735123852478,-500.0,9.645e-05,2]
[346599411,1735123852499,-1817.61,9.645e-05,2]
[346599412,1735123852521,-500.0,9.645e-05,2]
[346599413,1735123852542,-500.0,9.645e-05,2]
[346599414,1735123852564,-950.77,9.645e-05,2]
[346599415,1735123852585,-1170.85,9.645e-05,2]
[346599416,1735123852606,-500.0,9.645e-05,2]
[346599417,1735123852627,-500.0,9.645e-05,2]
[346599418,1735123852648,-500.0,9.645e-05,2]
[346599419,1735123852670,-500.0,9.645e-05,2]
[346599420,1735123852691,-1838.6,9.645e-05,2]
[346599421,1735123852711,-314.29246268,9.645e-05,2]
[346599422,1735123852732,-500.0,9.645e-05,2]
[346599423,1735123852753,-501.27650721,9.645e-05,2]
[346599424,1735123852774,-500.0,9.645e-05,2]
[346599425,1735123852794,-2502.46,9.645e-05,2]
[346599426,1735123852815,-1400.43,9.645e-05,2]
[346599427,1735123852836,-500.0,9.645e-05,2]
[346599428,1735123852859,-500.0,9.645e-05,2]
[346599429,1735123852881,-801.56,9.645e-05,2]
[346599430,1735123852902,-500.0,9.645e-05,2]
[346599431,1735123852925,-1319.87,9.645e-05,2]
[346599432,1735123852948,-1080.44,9.645e-05,2]
[346599433,1735123852970,-1580.81,9.645e-05,2]
[346599434,1735123852991,-514.809203,9.645e-05,2]
[346599435,1735123853012,-500.0,9.645e-05,2]
[346599436,1735123853034,-500.0,9.645e-05,2]
[346599437,1735123853057,-500.0,9.645e-05,2]
[346599438,1735123853078,-538.39,9.645e-05,2]
[346599439,1735123853099,-500.0,9.645e-05,2]
[346599440,1735123853120,-697.81,9.645e-05,2]
[346599441,1735123853141,-500.0,9.645e-05,2]
[346599442,1735123853162,-500.0,9.645e-05,2]
[346599443,1735123853183,-500.0,9.645e-05,2]
[346599444,1735123853204,-548.66,9.645e-05,2]
[346599445,1735123853225,-1539.71,9.645e-05,2]
[346599446,1735123853246,-1862.08,9.645e-05,2]
[346599447,1735123853267,-500.0,9.645e-05,2]
[346599448,1735123853287,-500.0,9.645e-05,2]
[346599449,1735123853307,-500.0,9.645e-05,2]
[346599450,1735123853332,-2758.57,9.645e-05,2]
[346599451,1735123853353,-1444.61,9.645e-05,2]
[346599452,1735123853376,-607.64,9.645e-05,2]
[346599453,1735123853397,-500.0,9.645e-05,2]
[346599454,1735123853418,-1802.49,9.645e-05,2]
[346599455,1735123853441,-500.0,9.645e-05,2]
[346599456,1735123853462,-500.0,9.645e-05,2]
[346599457,1735123853484,-500.0,9.645e-05,2]
[346599458,1735123853506,-1569.27,9.645e-05,2]
[346599459,1735123853526,-500.0,9.645e-05,2]
[346599460,1735123853547,-500.0,9.645e-05,2]
[346599461,1735123853567,-1142.88,9.645e-05,2]
[346599462,1735123853587,-500.0,9.645e-05,2]
[346599463,1735123853609,-539.89972255,9.645e-05,2]
[346599464,1735123853632,-672.98,9.645e-05,2]
[346599465,1735123853654,-500.0,9.645e-05,2]
[346599466,1735123853675,-1200.5,9.645e-05,2]
[346599467,1735123853698,-500.0,9.645e-05,2]
[346599468,1735123853720,-657.26,9.645e-05,2]
[346599469,1735123853745,-500.0,9.645e-05,2]
[346599470,1735123853767,-500.34952993,9.645e-05,2]
[346599471,1735123853789,-500.0,9.645e-05,2]
[346599472,1735123853810,-500.0,9.645e-05,2]
[346599473,1735123853832,-524.08,9.645e-05,2]
[346599474,1735123853856,-500.0,9.645e-05,2]
[346599475,1735123853880,-500.0,9.645e-05,2]
[346599476,1735123853902,-500.0,9.645e-05,2]
[346599477,1735123853927,-500.0,9.645e-05,2]
[346599478,1735123853950,-500.0,9.645e-05,2]
[346599479,1735123853974,-500.0,9.645e-05,2]
[346599480,1735123853995,-1063.48,9.645e-05,2]
[346599481,1735123854016,-500.0,9.645e-05,2]
[346599482,1735123854037,-500.0,9.645e-05,2]
[346599483,1735123854058,-500.0,9.645e-05,2]
[346599484,1735123854081,-500.0,9.645e-05,2]
[346599485,1735123854102,-500.0,9.645e-05,2]
[346599486,1735123854122,-530.29483292,9.645e-05,2]
[346599487,1735123854145,-1068.24,9.645e-05,2]
[346599488,1735123854166,-1438.42,9.645e-05,2]
[346599489,1735123854188,-500.0,9.645e-05,2]
[346599490,1735123854210,-500.0,9.645e-05,2]
[346599491,1735123854232,-500.0,9.645e-05,2]
[346599492,1735123854254,-500.0,9.645e-05,2]
[346599493,1735123854278,-500.0,9.645e-05,2]
[346599494,1735123854299,-871.52,9.645e-05,2]
[346599495,1735123854324,-2339.81,9.645e-05,2]
[346599496,1735123854346,-500.0,9.645e-05,2]
[346599497,1735123854371,-500.0,9.645e-05,2]
[346599498,1735123854393,-500.0,9.645e-05,2]
[346599499,1735123854415,-500.0,9.645e-05,2]
[346599500,1735123854436,-500.0,9.645e-05,2]
[346599501,1735123854462,-500.0,9.645e-05,2]
[346599502,1735123854484,-222.67871932,9.645e-05,2]
[346599503,1735123854506,-500.0,9.645e-05,2]
[346599504,1735123854527,-500.0,9.645e-05,2]
[346599505,1735123854548,-500.0,9.645e-05,2]
[346599506,1735123854570,-1694.59,9.645e-05,2]
[346599507,1735123854861,-500.0,9.645e-05,2]
[346599508,1735123854883,-500.0,9.645e-05,2]
[346599509,1735123854905,-865.12,9.645e-05,2]
[346599510,1735123854928,-1519.96,9.645e-05,2]
[346599511,1735123854951,-500.0,9.645e-05,2]
[346599512,1735123854973,-500.0,9.645e-05,2]
[346599513,1735123854995,-500.93787172,9.645e-05,2]
[346599514,1735123855018,-2752.14,9.645e-05,2]
[346599515,1735123855040,-500.0,9.645e-05,2]
[346599516,1735123855063,-500.0,9.645e-05,2]
[346599517,1735123855085,-506.53352488,9.645e-05,2]
[346599518,1735123855108,-1184.21,9.645e-05,2]
[346599519,1735123855130,-501.18,9.645e-05,2]
[346599520,1735123855153,-1007.58,9.645e-05,2]
[346599521,1735123855174,-1068.96,9.645e-05,2]
[346599522,1735123855198,-1364.22,9.645e-05,2]
[346599523,1735123855220,-843.54,9.645e-05,2]
[346599524,1735123855241,-500.0,9.645e-05,2]
[346599525,1735123855263,-500.67404514,9.645e-05,2]
[346599526,1735123855284,-500.0,9.645e-05,2]
[346599527,1735123855305,-500.0,9.645e-05,2]
[346599528,1735123855330,-1314.59,9.645e-05,2]
[346599529,1735123855352,-2665.45,9.645e-05,2]
[346599530,1735123855373,-500.0,9.645e-05,2]
[346599531,1735123855395,-500.0,9.645e-05,2]
[346599532,1735123855418,-500.0,9.645e-05,2]
[346599533,1735123855442,-500.0,9.645e-05,2]
[346599534,1735123855465,-2254.43,9.645e-05,2]
[346599535,1735123855487,-2868.91,9.645e-05,2]
[346599536,1735123855508,-227.25154631,9.645e-05,2]
[346599537,1735123855530,-961.77,9.645e-05,2]
[346599538,1735123855551,-500.0,9.645e-05,2]
[346599539,1735123855573,-500.0,9.645e-05,2]
[346599540,1735123855594,-500.0,9.645e-05,2]
[346599541,1735123855616,-500.0,9.645e-05,2]
[346599542,1735123855637,-500.0,9.645e-05,2]
[346599543,1735123855659,-2900.38,9.645e-05,2]
[346599544,1735123855680,-3691.38,9.645e-05,2]
[346599545,1735123855703,-500.0,9.645e-05,2]
[346599546,1735123855726,-500.63095171,9.645e-05,2]
[346599547,1735123855748,-500.0,9.645e-05,2]
[346599548,1735123855770,-992.97,9.645e-05,2]
[346599549,1735123855793,-191.35088741,9.645e-05,2]
[346599550,1735123855815,-514.49223159,9.645e-05,2]
[346599551,1735123855837,-500.0,9.645e-05,2]
[346599552,1735123855859,-500.0,9.645e-05,2]
[346599553,1735123855881,-500.0,9.645e-05,2]
[346599554,1735123855903,-1365.06,9.645e-05,2]
[346599555,1735123855924,-191.16256221,9.645e-05,2]
[346599556,1735123855946,-500.0,9.645e-05,2]
[346599557,1735123855968,-500.0,9.645e-05,2]
[346599558,1735123855989,-500.0,9.645e-05,2]
[346599559,1735123856011,-500.0,9.645e-05,2]
[346599560,1735123856033,-500.0,9.645e-05,2]
[346599561,1735123856056,-657.14,9.645e-05,2]
[346599562,1735123856078,-500.0,9.645e-05,2]
[346599563,1735123856101,-592.61,9.645e-05,2]
[346599564,1735123856124,-500.0,9.645e-05,2]
[346599565,1735123856148,-500.0,9.645e-05,2]
[346599566,1735123856171,-1250.87,9.645e-05,2]
[346599567,1735123856195,-1651.28,9.645e-05,2]
[346599568,1735123856217,-500.0,9.645e-05,2]
[346599569,1735123856239,-501.57035091,9.645e-05,2]
[346599570,1735123856263,-1475.81,9.645e-05,2]
[346599571,1735123856286,-500.0,9.645e-05,2]
[346599572,1735123856307,-315.51303266,9.645e-05,2]
[346599573,1735123856329,-500.0,9.645e-05,2]
[346599574,1735123856350,-272.41161906,9.645e-05,2]
[346599575,1735123856374,-1768.15,9.645e-05,2]
[346599576,1735123856397,-949.41,9.645e-05,2]
[346599577,1735123856421,-315.43359424,9.645e-05,2]
[346599578,1735123856445,-514.77173186,9.645e-05,2]
[346599579,1735123856469,-500.0,9.645e-05,2]
[346599580,1735123856492,-500.0,9.645e-05,2]
[346599581,1735123856514,-501.61325081,9.645e-05,2]
[346599582,1735123856536,-500.0,9.645e-05,2]
[346599583,1735123856558,-500.0,9.645e-05,2]
[346599584,1735123856580,-500.0,9.645e-05,2]
[346599585,1735123856603,-207.17379713,9.645e-05,2]
[346599586,1735123856624,-315.31634468,9.645e-05,2]
[346599587,1735123856646,-500.0,9.645e-05,2]
[346599588,1735123856667,-500.0,9.645e-05,2]
[346599589,1735123856688,-615.43,9.645e-05,2]
[346599590,1735123856711,-500.0,9.645e-05,2]
[346599591,1735123856732,-500.0,9.645e-05,2]
[346599592,1735123856754,-500.0,9.645e-05,2]
[346599593,1735123856775,-508.46073802,9.645e-05,2]
[346599594,1735123856797,-1213.62,9.645e-05,2]
[346599595,1735123856819,-755.99,9.645e-05,2]
[346599596,1735123856841,-1216.96,9.645e-05,2]
[346599597,1735123856862,-500.0,9.645e-05,2]
[346599598,1735123856883,-500.0,9.645e-05,2]
[346599599,1735123856904,-500.0,9.645e-05,2]
[346599600,1735123856925,-500.0,9.645e-05,2]
[346599601,1735123856947,-500.0,9.645e-05,2]
[346599602,1735123856969,-500.38023095,9.645e-05,2]
[346599603,1735123856990,-1085.17,9.645e-05,2]
[346599604,1735123857013,-500.0,9.645e-05,2]
[346599605,1735123857035,-1510.59,9.645e-05,2]
[346599606,1735123857057,-500.0,9.645e-05,2]
[346599607,1735123857080,-1431.46,9.645e-05,2]
[346599608,1735123857102,-500.0,9.645e-05,2]
[346599609,1735123857124,-500.0,9.645e-05,2]
[346599610,1735123857146,-1328.84,9.645e-05,2]
[346599611,1735123857168,-500.0,9.645e-05,2]
[346599612,1735123857190,-2700.17,9.645e-05,2]
[346599613,1735123857212,-500.0,9.645e-05,2]
[346599614,1735123857234,-568.97764101,9.645e-05,2]
[346599615,1735123857256,-500.0,9.645e-05,2]
[346599616,1735123857279,-2119.65,9.645e-05,2]
[346599617,1735123857301,-950.7,9.645e-05,2]
[346599618,1735123857322,-500.0,9.645e-05,2]
[346599619,1735123857347,-500.0,9.645e-05,2]
[346599620,1735123857368,-1406.12,9.645e-05,2]
[346599621,1735123857391,-500.0,9.645e-05,2]
[346599622,1735123857413,-2748.42,9.645e-05,2]
[346599623,1735123857434,-500.0,9.645e-05,2]
[346599624,1735123857456,-2591.44,9.645e-05,2]
[346599625,1735123857479,-538.6,9.645e-05,2]
[346599626,1735123857502,-500.0,9.645e-05,2]
[346599627,1735123857524,-500.0,9.645e-05,2]
[346599628,1735123857546,-500.0,9.645e-05,2]
[346599629,1735123857568,-500.0,9.645e-05,2]
[346599630,1735123857590,-670.11,9.645e-05,2]
[346599631,1735123857612,-500.0,9.645e-05,2]
[346599632,1735123857635,-657.2,9.645e-05,2]
[346599633,1735123857659,-500.0,9.645e-05,2]
[346599634,1735123857681,-500.0,9.645e-05,2]
[346599635,1735123857703,-1236.04,9.645e-05,2]
[346599636,1735123857724,-500.0,9.645e-05,2]
[346599637,1735123857746,-672.78,9.645e-05,2]
[346599638,1735123857767,-500.0,9.645e-05,2]
[346599639,1735123857790,-1313.14,9.646e-05,2]
[346599640,1735123857811,-782.37,9.646e-05,2]
[346599641,1735123857833,-500.0,9.646e-05,2]
[346599642,1735123857855,-853.27,9.646e-05,2]
[346599643,1735123857876,-500.0,9.646e-05,2]
[346599644,1735123857898,-500.0,9.646e-05,2]
[346599645,1735123857920,-566.1,9.646e-05,2]
[346599646,1735123857941,-1123.54,9.646e-05,2]
[346599647,1735123857965,-588.96,9.646e-05,2]
[346599648,1735123857988,-500.0,9.646e-05,2]
[346599649,1735123858011,-500.0,9.646e-05,2]
[346599650,1735123858040,-500.0,9.646e-05,2]
[346599651,1735123858063,-500.0,9.646e-05,2]
[346599652,1735123858085,-500.0,9.646e-05,2]
[346599653,1735123858107,-540.29,9.646e-05,2]
[346599654,1735123858129,-500.0,9.646e-05,2]
[346599655,1735123858152,-910.07,9.646e-05,2]
[346599656,1735123858174,-500.0,9.646e-05,2]
[346599657,1735123858197,-1034.43,9.646e-05,2]
[346599658,1735123858218,-701.77,9.646e-05,2]
[346599659,1735123858241,-276.03971705,9.646e-05,2]
[346599660,1735123858263,-500.0,9.646e-05,2]
[346599661,1735123858285,-500.0,9.646e-05,2]
[346599662,1735123858306,-500.0,9.646e-05,2]
[346599663,1735123858327,-500.0,9.646e-05,2]
[346599664,1735123858352,-500.0,9.646e-05,2]
[346599665,1735123858375,-500.0,9.646e-05,2]
[346599666,1735123858396,-500.0,9.646e-05,2]
[346599667,1735123858417,-500.0,9.646e-05,2]
[346599668,1735123858440,-500.0,9.646e-05,2]
[346599669,1735123858463,-500.0,9.646e-05,2]
[346599670,1735123858485,-500.0,9.646e-05,2]
[346599671,1735123858506,-593.72,9.646e-05,2]
[346599672,1735123858533,-823.23,9.646e-05,2]
[346599673,1735123858554,-500.0,9.646e-05,2]
[346599674,1735123858575,-551.918463,9.646e-05,2]
[346599675,1735123858597,-500.0,9.646e-05,2]
[346599676,1735123858619,-561.91,9.646e-05,2]
[346599677,1735123858640,-803.22,9.646e-05,2]
[346599678,1735123858663,-500.0,9.646e-05,2]
[346599679,1735123858685,-500.0,9.646e-05,2]
[346599680,1735123858709,-769.08,9.646e-05,2]
[346599681,1735123858732,-500.0,9.646e-05,2]
[346599682,1735123858756,-505.89,9.646e-05,2]
[346599683,1735123858778,-500.0,9.646e-05,2]
[346599684,1735123858799,-500.0,9.646e-05,2]
[346599685,1735123858823,-500.0,9.646e-05,2]
[346599686,1735123858846,-500.39985675,9.646e-05,2]
[346599687,1735123858869,-500.0,9.646e-05,2]
[346599688,1735123859122,-500.0,9.646e-05,2]
[346599689,1735123859146,-500.0,9.646e-05,2]
[346599690,1735123859168,-500.0,9.646e-05,2]
[346599691,1735123859192,-519.4,9.646e-05,2]
[346599692,1735123859215,-500.0,9.646e-05,2]
[346599693,1735123859237,-500.0,9.646e-05,2]
[346599694,1735123859260,-500.0,9.646e-05,2]
[346599695,1735123859284,-500.0,9.646e-05,2]
[346599696,1735123859306,-500.0,9.646e-05,2]
[346599697,1735123859327,-500.65986826,9.646e-05,2]
[346599698,1735123859354,-500.0,9.646e-05,2]
[346599699,1735123859375,-500.0,9.646e-05,2]
[346599700,1735123859398,-500.0,9.646e-05,2]
[346599701,1735123859421,-500.0,9.646e-05,2]
[346599702,1735123859443,-500.0,9.646e-05,2]
[346599703,1735123859467,-1047.69,9.646e-05,2]
[346599704,1735123859489,-500.0,9.646e-05,2]
[346599705,1735123859513,-500.0,9.646e-05,2]
[346599706,1735123859535,-500.0,9.646e-05,2]
[346599707,1735123859557,-795.42,9.646e-05,2]
[346599708,1735123859579,-502.83457123,9.646e-05,2]
[346599709,1735123859600,-500.0,9.646e-05,2]
[346599710,1735123859621,-500.0,9.646e-05,2]
[346599711,1735123859645,-500.0,9.646e-05,2]
[346599712,1735123859669,-791.77,9.646e-05,2]
[346599713,1735123859691,-500.0,9.646e-05,2]
[346599714,1735123859714,-500.0,9.646e-05,2]
[346599715,1735123859735,-501.03426991,9.646e-05,2]
[346599716,1735123859757,-761.95,9.646e-05,2]
[346599717,1735123859779,-500.0,9.646e-05,2]
[346599718,1735123859800,-500.0,9.646e-05,2]
[346599719,1735123859822,-500.0,9.646e-05,2]
[346599720,1735123859843,-500.0,9.646e-05,2]
[346599721,1735123859866,-500.0,9.646e-05,2]
[346599722,1735123859888,-150.0,9.646e-05,2]
[346599723,1735123859910,-500.0,9.646e-05,2]
[346599724,1735123859932,-500.0,9.646e-05,2]
[346599725,1735123859955,-5000.0,9.646e-05,2]
[346599726,1735123859978,-764.41,9.646e-05,2]
[346599727,1735123860000,-500.0,9.646e-05,2]
[346599728,1735123860022,-500.0,9.646e-05,2]
[346599729,1735123860044,-668.48,9.646e-05,2]
[346599730,1735123860068,-537.41,9.646e-05,2]
[346599731,1735123860092,-500.0,9.646e-05,2]
[346599732,1735123860114,-503.704868,9.646e-05,2]
[346599733,1735123860136,-500.0,9.646e-05,2]
[346599734,1735123860159,-1164.9,9.646e-05,2]
[346599735,1735123860182,-500.0,9.646e-05,2]
[346599736,1735123860207,-500.0,9.646e-05,2]
[346599737,1735123860231,-505.4749557,9.646e-05,2]
[346599738,1735123860254,-500.0,9.646e-05,2]
[346599739,1735123860276,-500.0,9.646e-05,2]
[346599740,1735123860298,-500.0,9.646e-05,2]
[346599741,1735123860319,-500.0,9.646e-05,2]
[346599742,1735123860343,-500.0,9.646e-05,2]
[346599743,1735123860365,-515.11839947,9.646e-05,2]
[346599744,1735123860387,-560.33,9.646e-05,2]
[346599745,1735123860409,-500.0,9.646e-05,2]
[346599746,1735123860431,-634.6,9.646e-05,2]
[346599747,1735123860454,-1047.44,9.646e-05,2]
[346599748,1735123860476,-500.0,9.646e-05,2]
[346599749,1735123860499,-500.0,9.646e-05,2]
[346599750,1735123860521,-1013.49,9.646e-05,2]
[346599751,1735123860543,-1008.99,9.646e-05,2]
[346599752,1735123860564,-500.0,9.646e-05,2]
[346599753,1735123860585,-566.07,9.646e-05,2]
[346599754,1735123860607,-500.0,9.646e-05,2]
[346599755,1735123860629,-1350.23,9.646e-05,2]
[346599756,1735123860651,-500.0,9.646e-05,2]
[346599757,1735123860672,-500.0,9.646e-05,2]
[346599758,1735123860695,-500.0,9.646e-05,2]
[346599759,1735123860716,-500.0,9.646e-05,2]
[346599760,1735123860738,-500.0,9.646e-05,2]
[346599761,1735123860760,-500.0,9.646e-05,2]
[346599762,1735123860781,-500.0,9.646e-05,2]
[346599763,1735123860805,-500.0,9.646e-05,2]
[346599764,1735123860826,-12458.0,9.695e-05,2]
[346599765,1735123860848,-500.0,9.917e-05,2]
[346599766,1735123860870,-500.0,9.917e-05,2]
[346599767,1735123860893,-500.0,9.917e-05,2]
[346599768,1735123860915,-501.51652665,9.917e-05,2]
[346599769,1735123860937,-500.0,9.917e-05,2]
[346599770,1735123860962,-500.0,9.917e-05,2]
[346599771,1735123860984,-500.0,9.917e-05,2]
[346599772,1735123861006,-500.0,9.917e-05,2]
[346599773,1735123861029,-500.0,9.917e-05,2]
[346599774,1735123861050,-500.0,9.917e-05,2]
[346599775,1735123861073,-504.13063808,9.917e-05,2]
[346599776,1735123861096,-629.82,9.917e-05,2]
[346599777,1735123861118,-500.0,9.917e-05,2]
[346599778,1735123861141,-500.0,9.917e-05,2]
[346599779,1735123861164,-500.0,9.917e-05,2]
[346599780,1735123861186,-500.0,9.917e-05,2]
[346599781,1735123861209,-500.0,9.917e-05,2]
[346599782,1735123861232,-500.0,9.917e-05,2]
[346599783,1735123861254,-500.0,9.917e-05,2]
[346599784,1735123861277,-501.67589574,9.917e-05,2]
[346599785,1735123861299,-500.0,9.917e-05,2]
[346599786,1735123861320,-500.0,9.917e-05,2]
[346599787,1735123861346,-526.85249265,9.917e-05,2]
[346599788,1735123861368,-620.00613639,9.917e-05,2]
[346599789,1735123861391,-500.0,9.917e-05,2]
[346599790,1735123861413,-500.0,9.917e-05,2]
[346599791,1735123861435,-504.11037466,9.917e-05,2]
[346599792,1735123861458,-500.0,9.917e-05,2]
[346599793,1735123861480,-500.0,9.917e-05,2]
[346599794,1735123861504,-500.0,9.917e-05,2]
[346599795,1735123861525,-500.0,9.917e-05,2]
[346599796,1735123861547,-501.00744511,9.917e-05,2]
[346599797,1735123861568,-500.0,9.917e-05,2]
[346599798,1735123861589,-500.0,9.917e-05,2]
[346599799,1735123861611,-500.0,9.917e-05,2]
[346599800,1735123861632,-500.0,9.917e-05,2]
[346599801,1735123861653,-500.0,9.917e-05,2]
[346599802,1735123861674,-500.0,9.917e-05,2]
[346599803,1735123861697,-500.0,9.917e-05,2]
[346599804,1735123861718,-500.0,9.917e-05,2]
[346599805,1735123861740,-500.0,9.917e-05,2]
[346599806,1735123861762,-500.0,9.917e-05,2]
[346599807,1735123861784,-500.0,9.917e-05,2]
[346599808,1735123861806,-500.0,9.917e-05,2]
[346599809,1735123861828,-568.95700423,9.917e-05,2]
[346599810,1735123861849,-500.0,9.917e-05,2]
[346599811,1735123861871,-500.0,9.917e-05,2]
[346599812,1735123861892,-500.0,9.917e-05,2]
[346599813,1735123861913,-500.0,9.917e-05,2]
[346599814,1735123861934,-500.0,9.917e-05,2]
[346599815,1735123861957,-500.0,9.917e-05,2]
[346599816,1735123861980,-500.0,9.917e-05,2]
[346599817,1735123862001,-500.0,9.917e-05,2]
[346599818,1735123862023,-509.7290992,9.917e-05,2]
[346599819,1735123862045,-500.0,9.917e-05,2]
[346599820,1735123862068,-500.0,9.917e-05,2]
[346599821,1735123862090,-500.0,9.917e-05,2]
[346599822,1735123862112,-500.0,9.917e-05,2]
[346599823,1735123862136,-500.0,9.917e-05,2]
[346599824,1735123862159,-500.0,9.917e-05,2]
[346599825,1735123862182,-641.52,9.917e-05,2]
[346599826,1735123862206,-500.0,9.917e-05,2]
[346599827,1735123862230,-442.62704404,9.917e-05,2]
[346599828,1735123862254,-500.0,9.917e-05,2]
[346599829,1735123862278,-500.0,9.917e-05,2]
[346599830,1735123862301,-500.0,9.917e-05,2]
[346599831,1735123862323,-500.0,9.917e-05,2]
[346599832,1735123862348,-2052.61,9.917e-05,2]
[346599833,1735123862370,-500.0,9.917e-05,2]
[346599834,1735123862392,-509.06085693,9.917e-05,2]
[346599835,1735123862415,-500.0,9.917e-05,2]
[346599836,1735123862436,-501.90571205,9.917e-05,2]
[346599837,1735123862465,-500.0,9.917e-05,2]
[346599838,1735123862488,-500.0,9.917e-05,2]
[346599839,1735123862511,-500.0,9.917e-05,2]
[346599840,1735123862536,-500.0,9.917e-05,2]
[346599841,1735123862559,-500.0,9.917e-05,2]
[346599842,1735123862582,-500.0,9.917e-05,2]
[346599843,1735123862604,-500.0,9.917e-05,2]
[346599844,1735123862625,-500.0,9.917e-05,2]
[346599845,1735123862647,-500.0,9.917e-05,2]
[346599846,1735123862668,-500.0,9.917e-05,2]
[346599847,1735123862690,-500.0,9.917e-05,2]
[346599848,1735123862713,-500.0,9.917e-05,2]
[346599849,1735123862735,-500.0,9.917e-05,2]
[346599850,1735123862757,-724.12,9.917e-05,2]
[346599851,1735123862778,-500.0,9.917e-05,2]
[346599852,1735123862800,-500.0,9.917e-05,2]
[346599853,1735123862821,-500.0,9.917e-05,2]
[346599854,1735123862843,-502.77080399,9.917e-05,2]
[346599855,1735123862865,-500.0,9.917e-05,2]
[346599856,1735123862887,-500.0,9.917e-05,2]
[346599857,1735123862909,-500.0,9.917e-05,2]
[346599858,1735123862932,-2612.7,9.917e-05,2]
[346599859,1735123862955,-500.0,9.917e-05,2]
[346599860,1735123862977,-500.0,9.917e-05,2]
[346599861,1735123863000,-500.0,9.917e-05,2]
[346599862,1735123863023,-500.0,9.917e-05,2]
[346599863,1735123863046,-500.0,9.917e-05,2]
[346599864,1735123863070,-500.0,9.917e-05,2]
[346599865,1735123863093,-500.91839455,9.917e-05,2]
[346599866,1735123863117,-500.0,9.917e-05,2]
[346599867,1735123863139,-500.0,9.917e-05,2]